[Event "WTCC-50 2018"]
[Site "Radebeul"]
[Date "2018.07.14"]
[Round "8"]
[White "Schulz, Klaus-Juergen"]
[Black "Plotkin, Victor"]
[Result "1-0"]
[ECO "E16"]
[WhiteElo "2324"]
[BlackElo "2248"]
[Annotator "ChessBase"]
[PlyCount "97"]
[EventDate "2018.07.07"]
[EventType "team-tourn"]
[EventCountry "GER"]
[SourceTitle "playchess.com"]
[Source "ChessBase"]
[SourceQuality "1"]
[TimeControl "40/5400+30:1800+30"]

1. d4 {[%emt 0:00:00]} Nf6 {[%emt 0:00:00]} 2. Nf3 {[%emt 0:00:00]} e6 {[%emt 0:00:00]} 3. c4 {[%emt 0:00:14]} b6 {[%emt 0:00:20]} 4. g3 {[%emt 0:00:17]} Bb7 {[%emt 0:00:48]} 5. Bg2 {[%emt 0:00:05]} Bb4+ {[%emt 0:00:22]} 6. Bd2 {[%emt 0:00:39]} Be7 {[%emt 0:00:27]} 7. O-O {[%emt 0:00:20]} d5 {[%emt 0:02:06]} 8. cxd5 {[%emt 0:04:13]} exd5 {[%emt 0:03:24]} 9. Nc3 {[%emt 0:00:17]} O-O {[%emt 0:00:21]} 10. Bf4 {[%emt 0:01:07]} Nbd7 {[%emt 0:12:33]} 11. Rc1 {[%emt 0:08:16]} c6 {[%emt 0:04:40]} 12. Ne5 {[%emt 0:10:43]} Re8 {[%emt 0:16:25]} 13. e4 {[%emt 0:27:41]} dxe4 {[%emt 0:09:06]} 14. Nxe4 {[%emt 0:00:40]} Nxe5 {[%emt 0:01:45]} 15. dxe5 {[%emt 0:12:16]} Nd5 {[%emt 0:00:51]} 16. Qg4 {[%emt 0:06:19]} Qc8 {[%emt 0:06:13]} 17. Qh5 {[%emt 0:08:44]} Qe6 {[%emt 0:10:10]} 18. Bh3 {[%emt 0:00:04]} Nxf4 {[%emt 0:09:00]} 19. gxf4 {[%emt 0:00:01]} Qg6+ {[%emt 0:10:06]} 20. Qxg6 {[%emt 0:00:52]} hxg6 {[%emt 0:00:02]} 21. Bd7 {[%emt 0:00:21]} Red8 {[%emt 0:00:13]} 22. Bxc6 {[%emt 0:00:14]} Rab8 {[%emt 0:01:53]} 23. Bxb7 {[%emt 0:01:08]} Rxb7 {[%emt 0:00:02]} 24. Rfd1 {[%emt 0:00:52]} Rxd1+ {[%emt 0:01:27]} 25. Rxd1 {[%emt 0:00:01]} Rc7 {[%emt 0:00:32]} 26. Kf1 {[%emt 0:01:27]} Kf8 {[%emt 0:01:30]} 27. Ke2 {[%emt 0:00:38]} Ke8 {[%emt 0:01:04]} 28. Nc3 {[%emt 0:01:27]} Rc4 {[%emt 0:02:34]} 29. Nd5 {[%emt 0:02:56]} Rc2+ {[%emt 0:00:55]} 30. Rd2 {[%emt 0:00:19]} Rc1 {[%emt 0:00:24]} 31. Kd3 {[%emt 0:00:34]} Kd7 {[%emt 0:01:18]} 32. Ke4 {[%emt 0:04:45]} Ke6 {[%emt 0:01:56]} 33. b4 {[%emt 0:03:54]} Bh4 {[%emt 0:01:20]} 34. Ne3 {[%emt 0:00:32]} Be7 {[%emt 0:01:53]} 35. Rc2 {[%emt 0:00:08]} Rh1 {[%emt 0:00:44]} 36. b5 {[%emt 0:02:40]} Rxh2 {[%emt 0:00:13]} 37. f5+ {[%emt 0:00:41]} gxf5+ {[%emt 0:00:22]} 38. Nxf5 {[%emt 0:00:02]} Bc5 {[%emt 0:00:49]} 39. Nxg7+ {[%emt 0:00:21]} Kd7 {[%emt 0:00:23]} 40. Rd2+ {[%emt 0:00:22]} Kc8 {[%emt 0:00:25]} 41. Ne8 {[%emt 0:31:11]} Bxf2 {[%emt 0:03:11]} 42. Nd6+ {[%emt 0:00:00]} Kd7 {[%emt 0:04:12]} 43. Nxf7+ {[%emt 0:00:00]} Ke7 {[%emt 0:01:30]} 44. Nd6 {[%emt 0:00:00]} Ke6 {[%emt 0:05:08]} 45. Nf5 {[%emt 0:00:00]} Bg1 {[%emt 0:00:33]} 46. Rd6+ {[%emt 0:00:00]} Kf7 {[%emt 0:00:03]} 47. e6+ {[%emt 0:00:00]} Ke8 {[%emt 0:00:54]} 48. e7 {[%emt 0:00:00]} Re2+ {[%emt 0:00:13]} 49. Kd5 {[%emt 0:00:00]} 1-0

[Event "WTCC-50 2018"]
[Site "Radebeul"]
[Date "2018.07.14"]
[Round "8"]
[White "Denk, Adolf"]
[Black "Kempter, Ronald"]
[Result "1-0"]
[ECO "A49"]
[WhiteElo "2262"]
[BlackElo "2233"]
[Annotator "NA"]
[PlyCount "93"]
[EventDate "2018.07.07"]
[EventType "team-tourn"]
[EventCountry "GER"]
[SourceTitle "playchess.com"]
[Source "ChessBase"]
[SourceQuality "1"]
[TimeControl "40/5400+30:1800+30"]

1. d4 {[%emt 0:00:00]} Nf6 {[%emt 0:00:00]} 2. Nf3 {[%emt 0:00:00]} g6 {[%emt 0:00:46]} 3. g3 {[%emt 0:00:00]} Bg7 {[%emt 0:00:14]} 4. Bg2 {[%emt 0:00:00]} O-O {[%emt 0:00:36]} 5. O-O {[%emt 0:00:00]} c5 {[%emt 0:02:14]} 6. c4 {[%emt 0:00:12]} cxd4 {[%emt 0:00:30]} 7. Nxd4 {[%emt 0:00:09]} Nc6 {[%emt 0:00:11]} 8. Nc3 {[%emt 0:00:11]} d6 {[%emt 0:00:13]} 9. Nxc6 {[%emt 0:07:42]} bxc6 {[%emt 0:00:32]} 10. Bxc6 {[%emt 0:00:06]} Rb8 {[%emt 0:00:03]} 11. Bg2 {[%emt 0:00:05]} Qa5 {[%emt 0:00:04]} 12. Qa4 {[%emt 0:14:10]} Qxa4 {[%emt 0:29:22] E65: King's Indian: Fianchetto: 6...c5 7 0-0 without d5 by White} 13. Nxa4 {[%emt 0:00:16]} Bd7 {[%emt 0:11:38]} (13... Ng4 14. Nc3 Ne5 15. c5 dxc5 16. Bg5 Rxb2 17. Bxe7 Re8 18. Nd5 Rxe2 19. Nf6+ Bxf6 20. Bxf6 {½-½ (42) Nepomniachtchi,I (2714)-Jakovenko,D (2747) Yaroslavl 2014}) 14. Nc3 {[%emt 0:03:33]} Rfc8 {[%emt 0:05:25]} 15. b3 {[%emt 0:04:29]} Bc6 $146 {[%emt 0:23:54]} ({Predecessor:} 15... d5 16. Bf4 Rb6 17. Bxd5 e6 18. Bf3 Nh5 19. Bd2 Rd6 20. Rad1 Be8 21. Ne4 Ra6 22. g4 Nf6 23. Nxf6+ Bxf6 {1-0 (23) Golda,H (2297)-Spiess,G (2408) Germany 2003}) 16. Bd2 {[%emt 0:02:45]} Bxg2 {[%emt 0:04:52]} 17. Kxg2 {[%emt 0:00:14]} Nd7 {[%emt 0:04:24]} 18. Rac1 {[%emt 0:02:58]} Nc5 {[%emt 0:01:57]} 19. Rc2 {[%emt 0:05:47]} Ne6 {[%emt 0:03:11]} 20. Nd5 {[%emt 0:02:31]} Kf8 {[%emt 0:01:01]} 21. Be3 {[%emt 0:00:35]} Nd4 {[%emt 0:01:20]} 22. Rd2 {[%emt 0:09:45]} Nc6 {[%emt 0:01:02]} 23. Rc1 {[%emt 0:02:18]} a5 {[%emt 0:01:21]} 24. c5 {[%emt 0:08:13]} Nb4 {[%emt 0:01:48]} 25. Nxb4 {[%emt 0:07:32]} axb4 {[%emt 0:00:07]} 26. Rc4 {[%emt 0:01:55]} Bc3 {[%emt 0:01:35]} 27. Rd3 {[%emt 0:03:09]} dxc5 {[%emt 0:00:19]} 28. Bxc5 {[%emt 0:01:00]} Ke8 {[%emt 0:01:02]} 29. a4 {[%emt 0:04:30]} Rc6 {[%emt 0:00:51]} 30. Ba7 {[%emt 0:03:05]} Rxc4 {[%emt 0:01:07]} 31. Bxb8 {[%emt 0:00:18]} Rc8 {[%emt 0:00:38]} 32. Ba7 {[%emt 0:00:58]} f5 {[%emt 0:01:40]} 33. f4 {[%emt 0:02:56]} Be1 {[%emt 0:01:22]} 34. Rd1 {[%emt 0:02:19]} Bc3 {[%emt 0:00:01]} 35. Kf3 {[%emt 0:00:10]} Bb2 {[%emt 0:00:43]} 36. Bb6 {[%emt 0:01:36]} Rb8 {[%emt 0:01:09]} 37. a5 {[%emt 0:00:57]} Ra8 {[%emt 0:00:19]} 38. Ke3 {[%emt 0:01:50]} e6 {[%emt 0:00:46]} 39. Kd3 {[%emt 0:00:12]} Rc8 {[%emt 0:00:39]} 40. Ke3 {[%emt 0:04:28]} Ra8 {[%emt 0:00:32]} 41. Rd6 {[%emt 0:31:13]} Bc3 {[%emt 0:08:35]} 42. Kd3 {[%emt 0:00:00]} Ke7 {[%emt 0:05:37]} 43. Rc6 {[%emt 0:00:00]} h5 {[%emt 0:02:49]} 44. Kc4 {[%emt 0:00:00]} Kd7 {[%emt 0:01:41]} 45. Rc7+ {[%emt 0:00:00]} Kd6 {[%emt 0:00:19]} 46. Kb5 {[%emt 0:00:00]} Bd2 {[%emt 0:05:34]} 47. a6 $18 {[%emt 0:00:00]} 1-0

[Event "WTCC-50 2018"]
[Site "Radebeul"]
[Date "2018.07.14"]
[Round "8"]
[White "Schoene, Ralf"]
[Black "Rensch, Toralf"]
[Result "1/2-1/2"]
[ECO "A52"]
[WhiteElo "2256"]
[BlackElo "2088"]
[Annotator "NA"]
[PlyCount "47"]
[EventDate "2018.07.07"]
[EventType "team-tourn"]
[EventCountry "GER"]
[SourceTitle "playchess.com"]
[Source "ChessBase"]
[SourceQuality "1"]
[TimeControl "40/5400+30:1800+30"]

1. d4 {[%emt 0:00:00]} Nf6 {[%emt 0:00:00]} 2. c4 {[%emt 0:00:00]} e5 {[%emt 0:00:00]} 3. dxe5 {[%emt 0:00:00]} Ng4 {[%emt 0:00:01]} 4. Bf4 {[%emt 0:00:00]} g5 {[%emt 0:01:04]} 5. Bd2 {[%emt 0:00:00]} Nxe5 {[%emt 0:03:29]} 6. Bc3 {[%emt 0:00:30]} Nbc6 {[%emt 0:00:22]} 7. e3 {[%emt 0:00:41]} Bb4 {[%emt 0:01:18]} 8. f4 {[%emt 0:15:34]} gxf4 {[%emt 0:10:21]} 9. exf4 {[%emt 0:00:23]} Ng6 {[%emt 0:00:07]} 10. Qd2 {[%emt 0:03:43]} Qe7+ {[%emt 0:03:25]} 11. Be2 {[%emt 0:02:09]} Nh4 {[%emt 0:02:19]} 12. Kf1 {[%emt 0:07:39] [#]} Nf5 $17 {[%emt 0:05:24]} 13. Na3 {[%emt 0:04:29]} Ne3+ {[%emt 0:02:51]} 14. Ke1 {[%emt 0:03:25]} Nxg2+ {[%emt 0:01:35]} 15. Kf2 {[%emt 0:00:19]} Rg8 {[%emt 0:03:18]} 16. Bxb4 {[%emt 0:01:40]} Nxb4 {[%emt 0:13:48]} 17. Nf3 {[%emt 0:06:24]} Qc5+ {[%emt 0:07:42]} 18. Nd4 {[%emt 0:07:15]} Nc6 {[%emt 0:09:34]} 19. Nac2 {[%emt 0:03:06]} Nxd4 {[%emt 0:03:05]} 20. Nxd4 {[%emt 0:00:16]} Nh4 {[%emt 0:02:48]} 21. Rae1 {[%emt 0:08:18]} Kf8 {[%emt 0:02:57]} 22. Qe3 Rg2+ 23. Kf1 d6 24. Bf3 1/2-1/2

[Event "WTCC-50 2018"]
[Site "Radebeul"]
[Date "2018.07.14"]
[Round "8"]
[White "Findlay, Ian T."]
[Black "Wolf, Volker"]
[Result "1-0"]
[ECO "C10"]
[WhiteElo "2244"]
[BlackElo "2323"]
[Annotator "NA"]
[PlyCount "65"]
[EventDate "2018.07.07"]
[EventType "team-tourn"]
[EventCountry "GER"]
[SourceTitle "playchess.com"]
[Source "ChessBase"]
[SourceQuality "1"]
[TimeControl "40/5400+30:1800+30"]

1. e4 {[%emt 0:00:00]} e6 {[%emt 0:00:00]} 2. d4 {[%emt 0:00:00]} d5 {[%emt 0:00:00]} 3. Nd2 {[%emt 0:00:00]} dxe4 {[%emt 0:01:56]} 4. Nxe4 {[%emt 0:00:00]} Bd7 {[%emt 0:01:11]} 5. Nf3 {[%emt 0:01:07]} Bc6 {[%emt 0:00:12]} 6. Bd3 {[%emt 0:00:11]} Nd7 {[%emt 0:00:15]} 7. Qe2 {[%emt 0:00:56]} Ngf6 {[%emt 0:01:19]} 8. Bf4 {[%emt 0:00:19] C10: French with 3 Nc3: Unusual Black 3rd moves and 3...dxe4} (8. Nxf6+ Nxf6 9. Bb5 Qd5 10. Bxc6+ Qxc6 11. O-O Bd6 12. c4 O-O 13. Re1 Rfe8 14. Bg5 Be7 15. Ne5 Qd6 16. Rad1 {½-½ (68) Salgado Lopez,I (2627)-Jobava,B (2687) Tbilisi 2017}) 8... Nxe4 {[%emt 0:04:43]} 9. Bxe4 {[%emt 0:00:05]} Bxe4 {[%emt 0:00:14]} 10. Qxe4 {[%emt 0:00:06]} c6 {[%emt 0:00:02]} 11. O-O-O {[%emt 0:01:41]} Be7 {[%emt 0:06:10]} 12. Kb1 {[%emt 0:01:07]} Qa5 $146 {[%emt 0:04:20]} ({Predecessor:} 12... Nf6 13. Qe2 Bd6 14. Bg5 h6 15. Bh4 Qa5 16. Ne5 Bxe5 17. dxe5 {1-0 (40) Palac,M (2584)-Mohr,G (2478) Sibenik 2006}) 13. c4 {[%emt 0:06:13]} Nf6 {[%emt 0:04:14]} 14. Qc2 {[%emt 0:01:06]} O-O {[%emt 0:10:30]} 15. Rhe1 {[%emt 0:14:21]} Rfe8 {[%emt 0:06:29]} 16. h3 {[%emt 0:00:35]} Rad8 {[%emt 0:02:56]} 17. g4 {[%emt 0:03:13]} c5 {[%emt 0:05:29]} 18. Be3 {[%emt 0:15:28]} cxd4 {[%emt 0:04:05]} 19. Bxd4 {[%emt 0:00:53]} Nd7 {[%emt 0:00:57]} 20. h4 {[%emt 0:05:27]} Bc5 {[%emt 0:08:15]} 21. Ng5 {[%emt 0:03:54]} Nf8 {[%emt 0:02:04]} 22. Bxc5 $11 {[%emt 0:10:17]} Qxc5 {[%emt 0:00:32]} 23. Ne4 {[%emt 0:00:12]} Qc6 {[%emt 0:06:19]} 24. h5 {[%emt 0:01:10]} h6 {[%emt 0:02:53]} 25. f4 {[%emt 0:06:12]} Qc7 {[%emt 0:02:47]} 26. Qf2 {[%emt 0:05:07]} f5 {[%emt 0:05:15]} 27. Rxd8 {[%emt 0:04:40]} Rxd8 {[%emt 0:02:17]} 28. gxf5 {[%emt 0:00:08]} exf5 {[%emt 0:00:04]} 29. Ng3 {[%emt 0:01:40]} Qxc4 {[%emt 0:03:17]} 30. Nxf5 {[%emt 0:00:46]} Ne6 {[%emt 0:08:16]} 31. Qg3 {[%emt 0:04:25]} Rd2 {[%emt 0:03:00]} 32. Nxh6+ {[%emt 0:02:54]} Kf8 {[%emt 0:00:17]} 33. Qg6 {[%emt 0:00:29]} 1-0

[Event "WTCC-50 2018"]
[Site "Radebeul"]
[Date "2018.07.14"]
[Round "8"]
[White "Strutinskaia, Galina"]
[Black "Welling, Gerard"]
[Result "1/2-1/2"]
[ECO "A49"]
[WhiteElo "2221"]
[BlackElo "2317"]
[Annotator "NA"]
[PlyCount "117"]
[EventDate "2018.07.07"]
[EventType "team-tourn"]
[EventCountry "GER"]
[SourceTitle "playchess.com"]
[Source "ChessBase"]
[SourceQuality "1"]
[TimeControl "40/5400+30:1800+30"]

1. d4 {[%emt 0:00:00]} Nf6 {[%emt 0:00:00]} 2. Nf3 {[%emt 0:00:13]} g6 {[%emt 0:00:00]} 3. g3 {[%emt 0:01:14]} b6 {[%emt 0:01:47]} 4. Bg2 {[%emt 0:01:19]} Bb7 {[%emt 0:00:07]} 5. O-O {[%emt 0:00:19]} Bg7 {[%emt 0:00:13]} 6. Re1 {[%emt 0:02:08]} O-O {[%emt 0:00:34]} 7. Nbd2 {[%emt 0:00:19]} d5 {[%emt 0:02:39]} 8. Ne5 {[%emt 0:02:34]} Nbd7 {[%emt 0:02:49]} 9. Ndf3 {[%emt 0:02:28]} c5 {[%emt 0:09:51]} 10. c3 {[%emt 0:00:39]} e6 {[%emt 0:04:11]} 11. Bf4 {[%emt 0:07:01]} Ne4 {[%emt 0:13:34]} 12. Rc1 {[%emt 0:07:30]} Nxe5 {[%emt 0:03:15]} 13. Nxe5 {[%emt 0:01:20]} f6 {[%emt 0:00:53]} 14. Nd3 {[%emt 0:01:22]} c4 {[%emt 0:02:05]} 15. Nb4 {[%emt 0:00:21]} g5 {[%emt 0:05:51]} 16. Be3 {[%emt 0:02:44]} f5 {[%emt 0:02:21]} 17. f3 {[%emt 0:01:50]} Nd6 {[%emt 0:02:04]} 18. Qd2 {[%emt 0:02:36]} h6 {[%emt 0:00:34]} 19. Bf2 {[%emt 0:06:35]} Qf6 {[%emt 0:02:46]} 20. e3 {[%emt 0:00:23]} Rf7 {[%emt 0:03:23]} 21. Re2 {[%emt 0:00:29]} Raf8 {[%emt 0:00:59]} 22. Rf1 {[%emt 0:07:03]} Qg6 {[%emt 0:01:28]} 23. Qd1 {[%emt 0:04:30]} a5 {[%emt 0:01:46]} 24. Nc2 {[%emt 0:00:30]} h5 {[%emt 0:00:07]} 25. Ne1 {[%emt 0:02:20]} Bc6 {[%emt 0:00:07]} 26. Qc2 {[%emt 0:01:10]} Qh6 {[%emt 0:02:24]} 27. h3 {[%emt 0:07:12]} Bf6 {[%emt 0:02:30]} 28. Qc1 {[%emt 0:06:33]} Rg7 {[%emt 0:02:20]} 29. Nc2 {[%emt 0:01:57]} g4 {[%emt 0:04:09]} 30. fxg4 {[%emt 0:01:26]} hxg4 {[%emt 0:00:42]} 31. h4 {[%emt 0:03:01]} Bd8 {[%emt 0:00:38]} 32. Be1 {[%emt 0:04:38]} Rgf7 {[%emt 0:00:43]} 33. Rf4 {[%emt 0:00:32]} Bc7 {[%emt 0:00:18]} 34. Bd2 {[%emt 0:06:13]} Ne4 {[%emt 0:00:24]} 35. Be1 {[%emt 0:00:30]} Bxf4 {[%emt 0:00:22]} 36. exf4 {[%emt 0:00:08]} b5 {[%emt 0:02:51]} 37. Ne3 {[%emt 0:02:21]} Qf6 {[%emt 0:00:52]} 38. a3 {[%emt 0:02:59]} Rb8 {[%emt 0:01:23]} 39. Nc2 {[%emt 0:01:53]} Rfb7 {[%emt 0:00:29]} 40. Qe3 {[%emt 0:02:13]} Bd7 {[%emt 0:02:12]} 41. Kh2 {[%emt 0:31:22]} Nd6 {[%emt 0:31:01]} 42. Kg1 {[%emt 0:02:05]} Kf7 {[%emt 0:04:33]} 43. Kh2 {[%emt 0:00:40]} Ne8 {[%emt 0:00:47]} 44. Qf2 {[%emt 0:03:26]} Nc7 {[%emt 0:00:58]} 45. Re5 {[%emt 0:01:44]} Kf8 {[%emt 0:01:45]} 46. Bd2 {[%emt 0:01:42]} Qe7 {[%emt 0:04:12]} 47. Re1 {[%emt 0:00:44]} Qd6 {[%emt 0:00:08]} 48. Ra1 {[%emt 0:00:50]} Na6 {[%emt 0:03:58]} 49. Qe1 {[%emt 0:00:39]} Kf7 {[%emt 0:00:21]} 50. Kg1 {[%emt 0:00:20]} Ra8 {[%emt 0:01:36]} 51. Kh2 {[%emt 0:00:00]} Nb8 {[%emt 0:00:00]} 52. Kg1 {[%emt 0:00:00]} Nc6 {[%emt 0:00:00]} 53. Kh2 {[%emt 0:00:00]} Ke7 {[%emt 0:00:00]} 54. Ne3 {[%emt 0:00:00]} Kd8 {[%emt 0:00:00]} 55. Nc2 {[%emt 0:00:00]} Raa7 {[%emt 0:00:00]} 56. Kg1 {[%emt 0:00:00]} Kc7 {[%emt 0:00:00]} 57. Kh2 {[%emt 0:00:00]} Kb8 {[%emt 0:00:00]} 58. Kg1 {[%emt 0:00:00]} Kc7 {[%emt 0:00:00]} 59. Kf2 {[%emt 0:00:00]} 1/2-1/2

[Event "WTCC-50 2018"]
[Site "Radebeul"]
[Date "2018.07.14"]
[Round "8"]
[White "Strutinskaia, Galina"]
[Black "Welling, Gerard J"]
[Result "1/2-1/2"]
[ECO "A49"]
[WhiteElo "2221"]
[BlackElo "2317"]
[Annotator "NA"]
[PlyCount "117"]
[EventDate "2018.07.07"]
[EventType "team-tourn"]
[EventCountry "GER"]
[SourceTitle "playchess.com"]
[Source "ChessBase"]
[SourceQuality "1"]
[TimeControl "40/5400+30:1800+30"]

1. d4 {[%emt 0:00:00]} Nf6 {[%emt 0:00:00]} 2. Nf3 {[%emt 0:00:13]} g6 {[%emt 0:00:00]} 3. g3 {[%emt 0:01:14]} b6 {[%emt 0:01:47]} 4. Bg2 {[%emt 0:01:19]} Bb7 {[%emt 0:00:07]} 5. O-O {[%emt 0:00:19] A49: 1 d4 Nf6 2 Nf3 g6 3 g3: Anti-King's Indian systems} Bg7 {[%emt 0:00:13]} 6. Re1 {[%emt 0:02:08]} (6. c4 e6 7. Nc3 O-O 8. d5 exd5 9. cxd5 Re8 10. Nd4 c5 11. Ndb5 d6 12. Bf4 Bf8 13. a4 a6 14. Na3 Nh5 15. Bd2 Nd7 {1-0 (47) Ponomariov,R (2686)-Hou,Y (2658) Shenzhen 2018}) 6... O-O {[%emt 0:00:34]} 7. Nbd2 {[%emt 0:00:19]} d5 {[%emt 0:02:39]} 8. Ne5 {[%emt 0:02:34]} Nbd7 {[%emt 0:02:49]} 9. Ndf3 {[%emt 0:02:28]} c5 {[%emt 0:09:51]} 10. c3 {[%emt 0:00:39]} e6 $146 {[%emt 0:04:11]} ({Predecessor:} 10... Ne4 11. Bf4 f6 12. Nxd7 Qxd7 13. a4 Bc6 14. a5 c4 15. Nd2 {½-½ (24) Pribyl,J (2432)-Kabanov,N (2514) Pardubice 2006}) 11. Bf4 {[%emt 0:07:01]} Ne4 {[%emt 0:13:34]} 12. Rc1 {[%emt 0:07:30]} Nxe5 {[%emt 0:03:15]} 13. Nxe5 {[%emt 0:01:20]} f6 {[%emt 0:00:53]} 14. Nd3 {[%emt 0:01:22]} c4 {[%emt 0:02:05]} 15. Nb4 {[%emt 0:00:21]} g5 {[%emt 0:05:51]} 16. Be3 {[%emt 0:02:44]} f5 {[%emt 0:02:21]} 17. f3 {[%emt 0:01:50]} Nd6 {[%emt 0:02:04]} 18. Qd2 {[%emt 0:02:36]} h6 {[%emt 0:00:34]} 19. Bf2 {[%emt 0:06:35]} Qf6 {[%emt 0:02:46]} 20. e3 {[%emt 0:00:23]} Rf7 {[%emt 0:03:23]} 21. Re2 {[%emt 0:00:29]} Raf8 {[%emt 0:00:59]} 22. Rf1 {[%emt 0:07:03]} Qg6 {[%emt 0:01:28]} 23. Qd1 {[%emt 0:04:30]} a5 {[%emt 0:01:46]} 24. Nc2 {[%emt 0:00:30]} h5 {[%emt 0:00:07]} 25. Ne1 {[%emt 0:02:20]} Bc6 {[%emt 0:00:07]} 26. Qc2 {[%emt 0:01:10]} Qh6 {[%emt 0:02:24]} 27. h3 {[%emt 0:07:12]} Bf6 {[%emt 0:02:30]} 28. Qc1 {[%emt 0:06:33]} Rg7 {[%emt 0:02:20]} 29. Nc2 {[%emt 0:01:57]} g4 {[%emt 0:04:09]} 30. fxg4 {[%emt 0:01:26]} hxg4 {[%emt 0:00:42]} 31. h4 {[%emt 0:03:01]} Bd8 {[%emt 0:00:38]} 32. Be1 {[%emt 0:04:38]} Rgf7 {[%emt 0:00:43]} 33. Rf4 {[%emt 0:00:32]} Bc7 {[%emt 0:00:18]} 34. Bd2 {[%emt 0:06:13]} Ne4 {[%emt 0:00:24]} 35. Be1 {[%emt 0:00:30]} Bxf4 {[%emt 0:00:22]} 36. exf4 {[%emt 0:00:08]} b5 {[%emt 0:02:51]} 37. Ne3 {[%emt 0:02:21]} Qf6 {[%emt 0:00:52]} 38. a3 {[%emt 0:02:59]} Rb8 {[%emt 0:01:23]} 39. Nc2 {[%emt 0:01:53]} Rfb7 {[%emt 0:00:29]} 40. Qe3 {[%emt 0:02:13]} Bd7 {[%emt 0:02:12]} 41. Kh2 {[%emt 0:31:22]} Nd6 {[%emt 0:31:01]} 42. Kg1 {[%emt 0:02:05]} Kf7 {[%emt 0:04:33]} 43. Kh2 {[%emt 0:00:40]} Ne8 {[%emt 0:00:47]} 44. Qf2 {[%emt 0:03:26]} Nc7 {[%emt 0:00:58]} 45. Re5 {[%emt 0:01:44]} Kf8 {[%emt 0:01:45]} 46. Bd2 {[%emt 0:01:42]} Qe7 {[%emt 0:04:12]} 47. Re1 {[%emt 0:00:44]} Qd6 {[%emt 0:00:08]} 48. Ra1 {[%emt 0:00:50]} Na6 {[%emt 0:03:58]} 49. Qe1 {[%emt 0:00:39]} Kf7 {[%emt 0:00:21]} 50. Kg1 {[%emt 0:00:20]} Ra8 {[%emt 0:01:36]} 51. Kh2 {[%emt 0:00:00]} Nb8 {[%emt 0:00:00]} 52. Kg1 {[%emt 0:00:00]} Nc6 {[%emt 0:00:00]} 53. Kh2 {[%emt 0:00:00]} Ke7 {[%emt 0:00:00]} 54. Ne3 {[%emt 0:00:00]} Kd8 {[%emt 0:00:00]} 55. Nc2 {[%emt 0:00:00]} Raa7 {[%emt 0:00:00]} 56. Kg1 {[%emt 0:00:00]} Kc7 {[%emt 0:00:00]} 57. Kh2 {[%emt 0:00:00]} Kb8 {[%emt 0:00:00]} 58. Kg1 $19 {[%emt 0:00:00]} Kc7 {[%emt 0:00:00]} 59. Kf2 {[%emt 0:00:00]} 1/2-1/2

[Event "WTCC-50 2018"]
[Site "Radebeul"]
[Date "2018.07.14"]
[Round "8"]
[White "Pieper, Thomas"]
[Black "Wagner-Michel, Annett"]
[Result "1-0"]
[ECO "B67"]
[WhiteElo "2208"]
[BlackElo "2119"]
[Annotator "NA"]
[PlyCount "79"]
[EventDate "2018.07.07"]
[EventType "team-tourn"]
[EventCountry "GER"]
[SourceTitle "playchess.com"]
[Source "ChessBase"]
[SourceQuality "1"]
[TimeControl "40/5400+30:1800+30"]

1. e4 {[%emt 0:00:00]} c5 {[%emt 0:00:00]} 2. Nf3 {[%emt 0:00:00]} Nc6 {[%emt 0:00:00]} 3. d4 {[%emt 0:00:00]} cxd4 {[%emt 0:00:00]} 4. Nxd4 {[%emt 0:00:00]} Nf6 {[%emt 0:00:10]} 5. Nc3 {[%emt 0:00:00]} d6 {[%emt 0:00:24]} 6. Bg5 {[%emt 0:00:34]} a6 {[%emt 0:01:57]} 7. Qd2 {[%emt 0:01:24]} e6 {[%emt 0:02:45]} 8. O-O-O {[%emt 0:00:34]} Bd7 {[%emt 0:01:02]} 9. f3 {[%emt 0:00:26]} b5 {[%emt 0:05:37]} 10. Nxc6 {[%emt 0:00:10]} Bxc6 {[%emt 0:00:03]} 11. Kb1 {[%emt 0:00:11]} Qb6 {[%emt 0:05:31]} 12. Qe1 {[%emt 0:05:00]} Be7 {[%emt 0:13:05]} 13. Ne2 {[%emt 0:06:00]} Qc5 {[%emt 0:07:01]} 14. Bh4 {[%emt 0:03:52]} Bb7 {[%emt 0:05:23]} 15. Nd4 {[%emt 0:04:38]} Rc8 {[%emt 0:04:24]} 16. c3 {[%emt 0:02:23]} O-O {[%emt 0:02:06]} 17. g4 {[%emt 0:06:55]} Rfe8 {[%emt 0:02:10]} 18. Bf2 {[%emt 0:04:47]} Qc7 {[%emt 0:02:13]} 19. Rg1 {[%emt 0:01:37]} Bf8 {[%emt 0:04:54]} 20. h4 {[%emt 0:10:33]} Nd7 {[%emt 0:03:32]} 21. g5 {[%emt 0:05:21]} d5 {[%emt 0:03:08]} 22. Bg3 {[%emt 0:16:55]} Bd6 {[%emt 0:05:35]} 23. Bxd6 {[%emt 0:00:35]} Qxd6 {[%emt 0:00:02]} 24. Nb3 {[%emt 0:04:00]} Qc7 {[%emt 0:07:31]} 25. exd5 {[%emt 0:06:22]} Bxd5 {[%emt 0:00:47]} 26. Qe3 {[%emt 0:01:46]} Ne5 {[%emt 0:06:27]} 27. Be2 {[%emt 0:04:55]} Bc4 {[%emt 0:05:57]} 28. h5 {[%emt 0:01:57]} Bxe2 {[%emt 0:05:59]} 29. Qxe2 {[%emt 0:00:06]} Nc4 {[%emt 0:00:09]} 30. Rd4 {[%emt 0:03:36]} Rcd8 {[%emt 0:02:43]} 31. Rgd1 {[%emt 0:01:52]} Rxd4 {[%emt 0:00:21]} 32. Rxd4 {[%emt 0:02:16]} Rd8 {[%emt 0:00:07]} 33. Qd3 {[%emt 0:01:03]} Rxd4 {[%emt 0:00:37]} 34. Qxd4 {[%emt 0:00:01]} e5 {[%emt 0:00:25]} 35. Qd5 {[%emt 0:00:26]} Qc8 {[%emt 0:01:09]} 36. Kc1 {[%emt 0:02:18]} Qe8 {[%emt 0:02:07]} 37. Nc5 {[%emt 0:01:10]} a5 {[%emt 0:00:33]} 38. Nd7 {[%emt 0:00:54]} Ne3 {[%emt 0:01:18]} 39. Qxb5 {[%emt 0:00:18]} h6 {[%emt 0:00:34]} 40. Nf6+ {[%emt 0:00:14]} 1-0

[Event "WTCC-50 2018"]
[Site "Radebeul"]
[Date "2018.07.14"]
[Round "8"]
[White "Rohrmueller, Ulrich"]
[Black "Druckenthaner, Andreas"]
[Result "1/2-1/2"]
[ECO "A04"]
[WhiteElo "2205"]
[BlackElo "2296"]
[Annotator "NA"]
[PlyCount "38"]
[EventDate "2018.07.07"]
[EventType "team-tourn"]
[EventCountry "GER"]
[SourceTitle "playchess.com"]
[Source "ChessBase"]
[SourceQuality "1"]
[TimeControl "40/5400+30:1800+30"]

1. Nf3 {[%emt 0:00:00]} Nc6 {[%emt 0:00:00]} 2. d4 {[%emt 0:00:20]} d6 {[%emt 0:00:00]} 3. d5 {[%emt 0:04:51]} Nb8 {[%emt 0:00:00]} 4. c4 {[%emt 0:01:42]} g6 {[%emt 0:00:07]} 5. Nc3 {[%emt 0:00:20]} Bg7 {[%emt 0:00:07]} 6. Bd2 {[%emt 0:01:43]} Nf6 {[%emt 0:00:20]} 7. g3 {[%emt 0:03:16]} O-O {[%emt 0:02:26]} 8. Bg2 {[%emt 0:00:32]} Na6 {[%emt 0:01:53]} 9. O-O {[%emt 0:03:50]} Nc5 {[%emt 0:02:19]} 10. Qc1 {[%emt 0:05:42]} Re8 {[%emt 0:04:49]} 11. Rd1 {[%emt 0:05:55]} e5 {[%emt 0:06:36]} 12. Bg5 {[%emt 0:08:46]} a5 {[%emt 0:01:52]} 13. Ne1 {[%emt 0:02:27]} e4 {[%emt 0:04:12]} 14. Nc2 $11 {[%emt 0:04:56]} Bd7 {[%emt 0:11:52]} 15. Nd4 {[%emt 0:06:49]} Qe7 {[%emt 0:07:15]} 16. Qf4 {[%emt 0:07:51]} Nh5 {[%emt 0:06:31]} 17. Bxe7 {[%emt 0:09:44]} Nxf4 {[%emt 0:00:23]} 18. Bg5 {[%emt 0:00:17]} Nxg2 {[%emt 0:00:34]} 19. Kxg2 {[%emt 0:00:07]} Na4 {[%emt 0:03:05]} 1/2-1/2